bitfinex/quotes_ETHUSD_20240614
["timestamp","ask_amount","ask_price","bid_price","bid_amount"]
[1718399934688,2.91253,3433.5,3432.7,2.91308]
[1718399935086,2.91265,3433.3,3432.8,2.91303]
[1718399935676,2.91274,3433.2,3432.8,2.91303]
[1718399935876,2.91274,3433.2,3432.6,5.17813]
[1718399935877,2.91274,3433.2,3432.7,2.91314]
[1718399936409,2.91274,3433.2,3432.6,5.17813]
[1718399936410,2.91266,3433.3,3432.6,2.2649]
[1718399936593,2.91301,3432.9,3432.4,2.9134]
[1718399936911,2.91309,3432.8,3432.4,2.9134]
[1718399937207,2.91299,3432.9,3432.4,2.91334]
[1718399937393,2.91299,3432.9,3432.0,2.91367]
[1718399937394,2.91299,3432.9,3432.5,2.91332]
[1718399938206,2.91309,3432.8,3432.3,2.91342]
[1718399938370,2.91309,3432.8,3432.2,2.91357]
[1718399939073,2.91315,3432.8,3432.1,2.91366]
[1718399939305,2.91315,3432.8,3431.8,2.91391]
[1718399939306,2.9136,3432.2,3431.8,2.91391]
[1718399939505,2.91325,3432.6,3431.7,2.914]
[1718399939506,2.9135,3432.3,3431.7,2.914]
[1718399939710,2.91333,3432.5,3431.0,7.166197]
[1718399939711,3.204026,3433.2,3432.7,2.91308]
[1718399939931,2.91282,3433.1,3432.5,2.9133]
[1718399940207,0.320317,3434.0,3432.6,2.2649]
[1718399940417,0.3232497,3433.8,3432.7,0.0582516]
[1718399940616,3.2354797,3433.8,3433.3,2.91257]
[1718399940914,2.91256,3433.4,3432.9,2.91298]
[1718399941411,3.2355297,3433.8,3432.7,2.91315]
[1718399941412,2.91281,3433.1,3432.7,2.91315]
[1718399941709,2.91282,3433.1,3432.7,2.91315]
[1718399942008,2.91235,3433.7,3432.9,2.91298]
[1718399942225,0.32355997,3433.6,3433.0,0.05825285]
[1718399942570,0.32355997,3433.6,3433.0,2.91286]
[1718399942767,2.91262,3433.4,3433.0,2.91286]
[1718399943007,2.91267,3433.3,3432.9,2.91297]
[1718399943433,2.91248,3433.5,3432.6,5.17807]
[1718399943434,2.91282,3433.1,3432.6,5.17807]
[1718399943570,2.91283,3433.1,3432.5,2.91332]
[1718399943768,2.91308,3432.8,3432.4,2.91341]
[1718399944373,2.913,3432.9,3432.5,2.91331]
[1718399944704,2.91291,3433.0,3432.4,2.9134]
[1718399944903,2.91291,3433.0,3432.5,2.91331]
[1718399945307,2.91291,3433.0,3432.5,2.91189776]
[1718399945513,0.323604,3433.4,3432.6,0.05825953]
[1718399945671,3.236194,3433.4,3432.9,2.9129]
[1718399945871,3.236194,3433.4,3432.7,2.91308]
[1718399945872,0.3559674,3433.3,3432.7,2.91308]
[1718399946103,0.3559674,3433.3,3433.1,2.91274]
[1718399946363,2.91178,3434.4,3432.8,0.05825735]
[1718399946364,2.91174,3434.4,3433.8,2.91221]
[1718399946503,2.9118,3434.3,3433.8,2.91218]
[1718399946675,2.91189,3434.2,3433.8,2.91218]
[1718399947009,2.91181,3434.3,3433.8,2.91218]
[1718399947309,3.494243,3434.2,3433.8,2.91218]
[1718399947874,0.582353,3434.2,3434.0,2.91205]
[1718399948205,2.91172,3434.4,3434.0,2.91205]
[1718399948577,2.91155,3434.6,3433.6,2.91239]
[1718399948578,2.91155,3434.6,3433.8,2.91214]
[1718399948780,4.34499514,3434.6,3433.8,2.91214]
[1718399948989,2.91171,3434.4,3434.0,2.91204]
[1718399949188,2.96173496,3435.2,3433.3,2.91264]
[1718399949189,1.43344514,3434.3,3433.3,2.91264]
[1718399949473,2.91207,3434.0,3433.4,2.91256]
[1718399949674,2.91214,3433.9,3433.5,2.91244]
[1718399949897,2.91247,3433.6,3433.0,2.91288]
[1718399950304,2.91247,3433.6,3432.7,2.91309]
[1718399950305,2.91273,3433.2,3432.7,2.91309]
[1718399950486,2.91273,3433.2,3432.8,2.91305]
[1718399952108,2.91273,3433.2,3432.8,2.76705]
[1718399954479,2.91282,3433.1,3432.7,2.91314]
[1718399954680,2.91302,3432.9,3432.5,2.91331]
[1718399955514,0.582583,3432.9,3432.1,5.34528]
[1718399955742,0.582583,3432.9,3432.4,2.91339]
[1718399955743,2.91309,3432.8,3432.4,2.91339]
[1718399955883,2.91309,3432.8,3432.1,2.4317]
[1718399955884,2.91309,3432.8,3432.5,2.91332]
[1718399956203,2.91309,3432.8,3432.4,2.91339]
[1718399957687,2.91298,3432.9,3432.1,2.91358]
[1718399957688,2.91302,3432.9,3432.1,2.91358]
[1718399957992,2.91324,3432.6,3432.1,2.91358]
[1718399958224,2.91333,3432.5,3432.1,2.91358]
[1718399959492,2.91367,3432.1,3431.8,2.91391]
[1718399959692,2.91367,3432.1,3431.7,2.91398]
[1718399960303,2.91354,3432.3,3431.8,2.91391]
[1718399961831,2.91354,3432.3,3431.9,2.91377]
[1718399963933,2.91373,3432.1,3431.7,2.914]
[1718399965537,0.582695,3432.3,3431.8,0.05827216]
[1718399965702,2.91325,3432.6,3431.8,0.05827216]
[1718399966043,2.9135,3432.3,3431.8,2.97212216]
[1718399966538,2.91374,3432.1,3431.6,2.91408]
[1718399966747,2.9136,3432.2,3431.8,2.91385]
[1718399968028,0.874043,3432.2,3431.6,2.91405]
[1718399968226,2.9136,3432.2,3431.8,2.91385]
[1718399968741,2.91366,3432.1,3431.8,2.91385]
[1718399969041,2.9136,3432.2,3431.8,2.91385]
[1718399969910,2.9136,3432.2,3431.4,2.91418]
[1718399970125,2.91376,3432.0,3431.6,2.91408]
[1718399970641,2.91376,3432.0,3431.0,2.4145]
[1718399970938,2.91385,3431.9,3431.5,2.9141]
[1718399972711,2.91385,3431.9,3431.6,2.91408]
[1718399974032,2.91367,3432.1,3431.6,2.91408]
[1718399974216,2.91377,3432.0,3431.6,2.91408]
[1718399974921,1.43344514,3431.9,3431.2,2.91435]
[1718399975544,2.91398,3431.8,3431.4,2.91425]
[1718399976048,2.91401,3431.7,3431.4,2.91425]
[1718399978424,2.91401,3431.7,3431.3,2.91433]
[1718399979114,2.91401,3431.7,3431.4,2.91425]
[1718399979535,3.64013951,3431.7,3431.3,2.91432]
[1718399980724,3.54013951,3431.7,3431.3,2.91432]
[1718399981442,2.91373,3432.1,3431.3,2.91433]
[1718399981645,1.43344514,3432.0,3431.1,2.91446]
[1718399981854,2.91393,3431.8,3431.2,2.91435]
[1718399982150,2.91393,3431.8,3431.4,2.91425]
[1718399983115,2.91386,3431.9,3431.5,2.91415]
[1718399983318,4.34730514,3431.9,3431.5,2.91415]
[1718399985757,4.34730514,3431.9,3431.6,2.91407]
[1718399988150,1.69044092,3432.8,3432.1,2.91362]
[1718399988353,5.11360723,3432.7,3432.2,2.91352]
[1718399988557,4.34666514,3432.7,3432.2,2.91352]
[1718399988758,2.91341,3432.4,3431.6,2.91401]
[1718399989058,1.43344514,3432.3,3431.5,2.91416]
[1718399989215,3.34826551,3432.2,3431.9,2.91382]
[1718399990036,0.43468551,3432.2,3431.9,2.91382]
[1718399990860,0.43468551,3432.2,3431.9,2.91377]
[1718399991455,1.749,3433.4,3432.3,2.91343]
[1718399991647,2.91324,3432.6,3432.3,2.91343]
[1718399991845,4.34668514,3432.6,3432.3,2.91343]
[1718399992045,1.43344514,3432.6,3432.3,2.91343]
[1718399992246,1.39913892,3433.6,3433.0,2.91284]
[1718399992547,1.86965545,3433.4,3433.1,2.9128]
[1718399993558,4.78221545,3433.4,3433.1,2.9128]
[1718399993858,1.86965545,3433.4,3433.1,2.9128]
[1718399994166,1.43344514,3433.3,3432.4,2.91333]
[1718399994658,2.91273,3433.2,3432.5,2.91331]
[1718399994867,3.34743751,3433.1,3432.7,2.91312]
[1718399995034,2.91235,3433.7,3433.1,2.91273]
[1718399995251,3.0,3434.0,3433.1,2.91273]
[1718399995252,1.43344514,3433.6,3433.1,2.91273]
[1718399995775,2.91255,3433.5,3433.1,2.91273]
[1718399995973,4.34599514,3433.5,3433.1,2.91273]
[1718399996661,2.91256,3433.4,3433.1,2.91273]
[1718399996854,0.56203411,3433.3,3433.0,2.91288]
[1718399997763,2.91281,3433.1,3432.8,2.91299]
[1718399998283,2.91281,3433.1,3431.6,2.91405]
[1718399998284,2.91315,3432.7,3431.7,2.91397]
[1718399998462,2.91315,3432.7,3432.3,2.91347]
[1718399998463,2.91317,3432.7,3432.3,2.91347]
[1718399999386,2.9124,3433.6,3432.8,2.913]
[1718399999584,1.43344514,3433.4,3432.8,2.913]
[1718399999754,2.91273,3433.2,3432.8,2.913]
[1718400000344,2.91291,3433.0,3432.6,2.91321]
[1718400000805,4.34628514,3433.1,3432.7,2.91314]
[1718400001078,1.43344514,3433.1,3432.3,2.91347]
[1718400001413,0.73458451,3433.3,3432.3,2.91347]
[1718400001414,2.91274,3433.2,3432.8,2.91302]
[1718400001553,0.65599245,3433.1,3432.8,2.91302]
[1718400001751,1.3988121,3434.2,3432.5,2.4332]
[1718400001952,2.91154,3434.7,3432.7,2.91314]
[1718400001953,4.34541514,3434.1,3432.7,2.91314]
[1718400002203,1.3988121,3434.9,3433.9,2.91207]
[1718400002410,1.749,3435.4,3433.9,2.91207]
[1718400002411,2.91172,3434.4,3433.9,2.91207]
[1718400002923,5.04246079,3435.6,3433.7,2.91229]
[1718400002924,1.3988121,3435.7,3435.6,2.4332]
[1718400003049,2.60849935,3436.3,3436.1,2.91019]
[1718400003050,1.48926351,3436.3,3436.1,2.91019]
[1718400003403,0.09045141,3436.3,3436.2,8.73057]
[1718400003695,0.09045141,3436.3,3436.2,5.82038]
[1718400003904,0.09045141,3436.3,3436.2,2.91019]
[1718400004114,2.13168079,3438.2,3436.3,2.4332]
[1718400004262,3.09794528,3439.0,3438.2,2.4332]
[1718400004609,3.0,3441.6,3438.2,2.4332]
[1718400004610,2.90531,3442.0,3438.9,1.43344514]
[1718400004744,3.0,3442.4,3438.9,1.43344514]
[1718400004745,2.90588,3441.3,3439.9,8.72118]
[1718400004948,2.90585,3441.4,3439.9,5.81412]
[1718400005185,2.90618,3441.0,3439.9,2.90706]
[1718400005391,2.9066,3440.5,3439.9,2.90706]
[1718400005552,2.90641,3440.7,3439.9,2.90706]
[1718400005754,3.0267073,3440.6,3439.9,2.90706]
[1718400005956,0.1202373,3440.6,3439.9,2.90706]
[1718400006265,0.1202373,3440.6,3439.9,5.81412]
[1718400006495,0.1202373,3440.6,3439.9,7.24756514]
[1718400006819,0.1202373,3440.6,3439.9,5.81412]
[1718400007027,0.1202373,3440.6,3439.9,2.90706]
[1718400007212,0.1202373,3440.6,3439.8,2.4332]
[1718400007213,2.90685,3440.2,3439.8,2.4332]
[1718400007410,2.90685,3440.2,3438.3,4.17337757]
[1718400007411,2.90752,3439.4,3438.9,2.90783]
[1718400007594,2.90752,3439.4,3438.8,5.34115]
[1718400007801,2.90752,3439.4,3438.8,2.90795]
[1718400008022,2.93433296,3439.3,3438.8,2.90795]
[1718400008322,0.02671296,3439.3,3438.5,2.90824]
[1718400008499,2.90742,3439.5,3439.3,0.11928704]
[1718400010035,19.40703,3440.0,3439.3,0.11928704]
[1718400010206,19.40703,3440.0,3439.4,2.96558948]
[1718400010207,17.87703,3440.0,3439.4,2.96558948]
[1718400010596,17.87703,3440.0,3439.5,2.90737]
[1718400010915,17.87703,3440.0,3439.6,0.05813609]
[1718400011243,14.97,3440.0,3439.8,2.9071]
[1718400011456,14.97,3440.0,3439.9,0.05813366]
[1718400011734,14.97,3440.0,3439.9,1.4915788]
[1718400012036,5.31556081,3440.0,3439.9,1.43344514]
[1718400012336,2.6228552,3440.0,3439.9,1.43344514]
[1718400013530,0.1202373,3440.6,3440.5,5.8131]
[1718400013832,0.1202373,3440.6,3440.5,2.90655]
[1718400014243,0.1202373,3440.6,3440.5,5.8131]
[1718400014906,0.1202373,3440.6,3440.5,2.90655]
[1718400016955,0.1202373,3440.6,3440.5,5.8131]
[1718400017314,0.1202373,3440.6,3440.5,2.90655]
[1718400017914,0.0002373,3440.6,3440.5,2.90655]
[1718400018114,0.0002373,3440.6,3440.5,5.8131]
[1718400018951,0.0002373,3440.6,3440.5,2.90655]
[1718400019115,0.0002373,3440.6,3440.5,5.8131]
[1718400019309,0.02583085,3440.6,3440.5,5.8131]
[1718400019510,0.0002373,3440.6,3440.5,2.90655]
[1718400020232,0.02590693,3440.6,3440.5,5.8131]
[1718400020434,2.90565,3441.6,3440.5,5.8131]
[1718400020435,2.90597,3441.2,3440.7,2.90633]
[1718400020643,2.90565,3441.6,3440.7,2.90635]
[1718400020855,2.90628,3440.9,3440.3,2.90669]
[1718400021161,2.90583,3441.4,3439.8,0.46172517]
[1718400021449,2.90643,3440.7,3440.1,2.90686]
[1718400021626,2.9066,3440.5,3440.1,2.90686]
[1718400022235,2.90637,3440.8,3440.3,2.90665]
[1718400022438,2.90637,3440.8,3440.2,2.90672]
[1718400022613,2.9064,3440.7,3440.2,2.90677]
[1718400022821,2.9064,3440.7,3440.3,2.90671]
[1718400023015,2.90625,3440.9,3440.0,2.90697]
[1718400023350,0.290565,3441.5,3438.3,1.16335]
[1718400023351,1.43344514,3440.6,3438.3,1.16335]
[1718400023513,2.90854,3438.2,3437.6,2.90895]
[1718400023719,5.4062,3439.8,3435.5,2.91074]
[1718400023720,1.43344514,3438.1,3435.5,2.91074]
[1718400023958,2.90872,3438.0,3436.3,2.91009]
[1718400024257,2.90828,3438.5,3435.5,0.46172517]
[1718400024258,2.90828,3438.5,3437.0,2.90947]
[1718400024413,2.90932,3437.3,3436.6,2.90981]
[1718400024617,3.0,3438.4,3436.1,2.91025]
[1718400024618,3.0,3438.4,3436.5,2.90991]
[1718400024820,2.90949,3437.1,3436.5,2.90991]
[1718400025326,2.90949,3437.1,3435.7,2.9106]
[1718400025327,2.90973,3436.8,3435.4,3.066]
[1718400025530,2.90976,3436.8,3436.3,2.91009]
[1718400026136,2.90957,3437.0,3435.8,2.91052]
[1718400026349,2.90944,3437.1,3435.5,0.46172517]
[1718400026671,2.90921,3437.4,3436.5,2.90991]
[1718400026831,2.90935,3437.2,3436.8,2.90962]
[1718400027037,2.3746,3438.2,3436.6,2.90984]
[1718400027038,2.90943,3437.1,3436.6,2.90984]
[1718400027718,2.90943,3437.1,3435.6,5.91066]
[1718400027719,2.90943,3437.1,3436.7,2.90975]
[1718400028131,2.90943,3437.1,3436.6,2.90984]
[1718400028327,2.90952,3437.0,3436.6,2.90984]
[1718400028532,2.90942,3437.2,3436.7,2.90975]
[1718400028727,2.90909,3437.5,3437.1,2.90941]
[1718400029077,2.90909,3437.5,3436.6,2.90977]
[1718400029078,2.90926,3437.3,3436.9,2.90957]
[1718400029253,2.90875,3437.9,3436.8,2.90962]
[1718400029254,2.90918,3437.4,3436.8,2.90962]
[1718400029657,2.90918,3437.4,3436.9,2.90953]
[1718400029861,2.90926,3437.3,3436.9,2.90953]
[1718400031241,2.90937,3437.2,3436.7,2.9097]
[1718400031571,2.90926,3437.3,3436.6,2.90977]
[1718400031572,2.90951,3437.0,3436.6,2.90985]
[1718400031721,2.90951,3437.0,3436.2,2.91014]
[1718400031722,2.90951,3437.0,3436.3,2.91008]
[1718400031922,2.90951,3437.0,3436.4,2.91001]
[1718400031923,2.90969,3436.8,3436.4,2.91001]
[1718400032267,0.0542657,3436.7,3436.4,2.91001]
[1718400032761,2.90977,3436.7,3436.1,2.91019]
[1718400032998,0.05425295,3436.6,3436.1,2.91019]
[1718400033196,0.05425295,3436.6,3436.2,2.91014]
[1718400033347,2.91019,3436.2,3435.8,2.91052]
[1718400033554,2.91019,3436.2,3435.6,2.91069]
[1718400033555,2.90996,3436.5,3435.6,2.91069]
[1718400033860,2.91023,3436.2,3435.6,2.91069]
[1718400034055,2.91023,3436.2,3435.7,2.91061]
[1718400034284,0.0508977,3436.1,3435.7,2.91061]
[1718400034793,2.9611777,3436.1,3435.7,2.91061]
[1718400035367,2.9611777,3436.1,3435.5,3.37249517]
[1718400035368,2.91039,3436.0,3435.5,3.37249517]
[1718400035593,2.91039,3436.0,3435.6,2.91067]
[1718400035801,0.0508722,3435.9,3435.6,2.91067]
[1718400036099,0.0508722,3435.9,3435.5,0.46172517]
[1718400036279,0.0508722,3435.9,3434.7,1.164296]
[1718400036478,2.91069,3435.6,3435.0,2.9112]
[1718400036797,0.04917432,3435.5,3435.0,2.9112]
[1718400036959,0.04917432,3435.5,3435.2,2.91103]
[1718400037297,2.91062,3435.7,3435.2,2.91103]
[1718400037589,2.9107,3435.6,3435.2,2.91103]
[1718400037788,2.91061,3435.7,3435.3,2.91094]
[1718400038091,2.91017,3436.3,3435.9,2.91042]
[1718400038314,2.91017,3436.3,3435.4,2.91079]
[1718400038458,2.91052,3435.9,3435.5,2.91076]
[1718400038986,2.91019,3436.2,3435.3,2.91095]
[1718400039307,2.91045,3435.9,3435.4,2.91086]
[1718400039515,2.91045,3435.9,3435.5,2.91075]
[1718400040255,2.91034,3436.1,3435.3,2.91086]
[1718400040565,2.91034,3436.1,3435.1,2.91111]
[1718400040566,2.91053,3435.8,3435.4,2.91079]
[1718400040966,2.91065,3435.7,3435.2,2.91102]
[1718400041165,2.91065,3435.7,3435.3,2.91092]
[1718400041692,2.9105,3435.9,3434.5,3.0]
[1718400042001,2.90976,3436.7,3434.2,4.23044]
[1718400042002,2.91111,3435.2,3434.6,2.91154]
[1718400042319,2.91113,3435.1,3434.7,2.91145]
[1718400042614,2.91113,3435.1,3434.3,2.91172]
[1718400042753,2.91113,3435.1,3434.4,2.91171]
[1718400042952,2.91104,3435.2,3434.5,2.96984356]
[1718400043152,2.91028,3436.1,3435.4,2.9108]
[1718400043391,2.91028,3436.1,3435.6,2.91062]
[1718400043593,2.91035,3436.1,3435.6,2.91069]
[1718400043789,2.91036,3436.0,3435.6,2.91069]
[1718400043977,2.91044,3435.9,3435.5,2.91077]
[1718400044367,5.8207,3436.1,3435.6,2.91068]
[1718400044566,3.8531363,3436.9,3435.4,2.91086]
[1718400044770,10.21872,3438.0,3435.6,2.91062]
[1718400044771,2.9103,3436.1,3435.6,2.91062]
[1718400044967,2.04610877,3436.8,3435.5,2.9107]
[1718400045169,2.04610877,3436.8,3435.7,2.91058]
[1718400045170,2.90976,3436.7,3435.7,2.91058]
[1718400045396,2.90976,3436.7,3436.3,2.91005]
[1718400045397,2.90977,3436.7,3436.3,2.91005]
[1718400046404,5.81962,3436.7,3436.3,2.91005]
[1718400046621,2.90982,3436.7,3436.3,2.91005]
[1718400048283,2.90969,3436.8,3436.1,2.91021]
[1718400048488,2.90969,3436.8,3436.3,2.91009]
[1718400048687,2.90969,3436.8,3436.4,2.91001]
[1718400049099,2.90969,3436.8,3436.3,2.9101]
[1718400049269,2.90977,3436.7,3436.3,2.9101]
[1718400049777,2.90977,3436.7,3436.2,2.91019]
[1718400049991,2.90977,3436.7,3436.2,5.82038]
[1718400050395,0.04787041,3436.6,3436.3,2.91005]
[1718400051000,0.04787041,3436.6,3436.4,2.91]
[1718400051203,2.90969,3436.8,3436.4,2.91]
[1718400051405,0.04791277,3436.7,3436.4,2.91]
[1718400051722,2.90969,3436.8,3436.4,2.91]
[1718400052326,0.04791277,3436.7,3436.4,2.91]
[1718400052651,2.90929,3437.3,3436.3,2.9101]
[1718400052953,31.12423552,3444.4,3436.2,2.4201]
[1718400052954,2.90867,3438.0,3437.4,2.90912]
[1718400053092,1.43344514,3437.9,3437.4,2.90912]
[1718400053288,2.90886,3437.8,3437.3,2.90925]
[1718400053836,2.90859,3438.1,3437.7,2.90891]
[1718400053998,0.22735,3438.5,3437.6,2.90893]
[1718400054199,4.34177514,3438.4,3437.7,2.9089]
[1718400054419,5.31684565,3438.4,3437.9,2.90874]
[1718400054726,2.90851,3438.2,3437.8,2.90883]
[1718400056032,2.90901,3437.6,3437.2,2.90933]
[1718400056204,2.90894,3437.7,3437.3,2.90919]
[1718400056722,2.90905,3437.6,3437.2,2.90927]
[1718400057525,2.90905,3437.6,3437.3,2.90925]
[1718400057936,2.90905,3437.6,3436.2,6.85354514]
[1718400057937,2.90859,3438.1,3436.7,1.38015375]
[1718400058237,2.90859,3438.1,3437.6,2.90892]
[1718400058903,2.90892,3437.7,3437.2,2.9093]
[1718400059107,2.90902,3437.6,3437.2,2.9093]
[1718400059943,2.90893,3437.7,3437.3,2.90925]
[1718400060246,2.90902,3437.6,3437.3,2.90925]
[1718400060533,2.90901,3437.6,3437.3,2.90917]
[1718400060738,2.90901,3437.6,3437.2,2.90933]
[1718400060898,2.90901,3437.6,3437.0,2.9095]
[1718400060899,2.90918,3437.4,3437.0,2.90949]
[1718400061733,2.90936,3437.2,3436.8,2.90967]
[1718400061932,2.90927,3437.3,3436.9,2.90959]
[1718400062231,2.90927,3437.3,3437.0,2.9095]
[1718400062728,2.90936,3437.2,3436.7,2.90973]
[1718400063695,2.90919,3437.4,3437.0,2.9095]
[1718400064031,2.90919,3437.4,3436.9,2.90959]
[1718400064032,2.90928,3437.3,3436.9,2.90958]
[1718400064843,2.90878,3437.9,3436.9,2.90958]
[1718400065024,2.90884,3437.8,3437.2,2.90934]
[1718400065194,2.90901,3437.6,3437.2,2.90934]
[1718400065399,0.04516335,3437.5,3437.4,2.90915]
[1718400065599,2.90884,3437.8,3437.4,2.90915]
[1718400065838,2.9541152,3437.7,3437.3,2.90924]
[1718400066201,2.909,3437.6,3437.3,2.90924]
[1718400066409,0.04516972,3437.5,3437.3,2.90924]
[1718400066702,0.04516972,3437.5,3437.1,2.90942]
[1718400066703,0.04516972,3437.5,3437.2,2.90932]
[1718400067221,2.90894,3437.7,3437.2,2.90932]
[1718400067413,0.04516944,3437.6,3437.4,2.90917]
[1718400067914,0.04516944,3437.6,3437.3,2.90924]
[1718400068207,0.04516944,3437.6,3437.2,2.90933]
[1718400068208,2.90909,3437.5,3437.2,2.90933]
[1718400068409,0.04516944,3437.6,3437.2,2.90933]
[1718400068410,0.04515061,3437.4,3437.2,2.90933]
[1718400068617,2.90902,3437.6,3437.3,2.90926]
[1718400068837,2.90871,3438.0,3436.9,2.90954]
[1718400068838,0.04516335,3437.5,3437.2,2.90933]
[1718400069025,2.90902,3437.6,3437.3,2.90924]
[1718400069341,0.04372234,3437.5,3437.3,2.90924]
[1718400070043,0.04372234,3437.5,3437.1,2.90942]
[1718400070044,2.95282234,3437.5,3437.1,2.90942]
[1718400070241,2.90951,3437.0,3436.6,2.90978]
[1718400070452,0.043672,3436.9,3436.8,2.90967]
[1718400070659,2.90943,3437.1,3436.7,2.90974]
[1718400070843,2.95336531,3436.9,3436.5,2.90993]
[1718400071359,0.04368531,3436.9,3436.6,2.90983]
[1718400071567,0.04368531,3436.9,3436.5,2.90991]
[1718400071568,0.04368531,3436.9,3436.7,2.90976]
[1718400071865,0.04368531,3436.9,3436.5,2.87993]
[1718400071866,2.95331531,3436.9,3436.5,2.87993]
[1718400072248,0.04368531,3436.9,3436.3,5.0]
[1718400072455,0.04368531,3436.9,3436.5,2.90985]
[1718400072456,2.9096,3436.9,3436.5,2.90985]
[1718400072629,2.9097,3436.8,3436.3,7.91009]
[1718400072825,2.95345329,3436.7,3436.3,7.91009]
[1718400073061,2.95345329,3436.7,3436.4,2.91001]
[1718400076530,2.95345329,3436.7,3436.3,7.91008]
[1718400076867,2.90986,3436.6,3436.3,7.91008]
[1718400077361,0.04342016,3436.5,3436.3,7.91008]
[1718400077569,0.04342016,3436.5,3436.3,5.0]
[1718400078245,2.91002,3436.4,3436.3,5.0]
[1718400078429,2.95345077,3436.4,3436.3,5.0]
[1718400078629,5.86347077,3436.4,3436.3,5.0]
[1718400080629,9.23361692,3436.4,3436.3,5.0]
[1718400081668,12.14363692,3436.4,3436.3,5.0]
[1718400082170,13.57708206,3436.4,3436.3,5.0]
[1718400086771,16.48710206,3436.4,3436.3,5.0]
[1718400087069,19.48710206,3436.4,3436.3,5.0]
[1718400087238,0.04343077,3436.4,3436.3,5.0]
[1718400087437,5.86347077,3436.4,3436.3,5.0]
[1718400087676,2.95345077,3436.4,3436.3,5.0]
[1718400089081,13.20693591,3436.4,3436.3,5.0]
[1718400089371,15.0559485,3436.4,3436.3,5.0]
[1718400090335,1.749,3436.2,3434.4,0.91797599]
[1718400090491,1.43344514,3436.1,3434.9,2.91128]
[1718400090680,0.73435651,3436.0,3434.8,2.91135]
[1718400090880,2.91105,3435.2,3434.8,2.91135]
[1718400091318,0.04236475,3435.1,3434.7,2.91144]
[1718400091615,0.04236475,3435.1,3434.8,2.91136]
[1718400091854,0.04236475,3435.1,3434.6,2.91152]
[1718400091998,0.04236475,3435.1,3434.8,2.91134]
[1718400092180,2.91097,3435.3,3434.8,2.91134]
[1718400093012,0.04207244,3435.2,3434.8,2.91134]
[1718400093390,0.04207244,3435.2,3434.0,0.61198399]
[1718400093391,2.91178,3434.4,3434.0,0.61198399]
[1718400093591,2.91164,3434.5,3433.9,2.91212]
[1718400093795,0.04153054,3434.3,3433.9,2.91212]
[1718400094115,0.04152536,3434.4,3433.9,2.91212]
[1718400094416,0.04147109,3434.2,3433.9,2.91212]
[1718400094713,0.04147109,3434.2,3433.7,2.9123]
[1718400094714,0.04145833,3434.1,3434.0,2.91204]
[1718400095020,0.04145833,3434.1,3433.8,2.9122]
[1718400095316,0.04145833,3434.1,3432.8,2.91307]
[1718400095317,2.91239,3433.7,3433.1,2.9128]
[1718400095824,2.91249,3433.5,3433.1,2.91281]
[1718400096119,0.29532583,3434.1,3433.5,2.91247]
[1718400096120,2.91204,3434.1,3433.5,2.91247]
[1718400096303,2.91213,3434.0,3433.4,2.91255]
[1718400096489,2.91223,3433.8,3433.1,2.91279]
[1718400096819,2.91245,3433.6,3433.2,2.91271]
[1718400097028,2.91258,3433.4,3432.7,1.164915]
[1718400097329,2.91297,3433.0,3432.7,1.164915]
[1718400097490,2.91293,3433.0,3432.7,1.164915]
[1718400098422,2.91305,3432.9,3432.7,1.164915]
[1718400098780,2.91249,3433.5,3432.6,2.91323]
[1718400098981,2.91249,3433.5,3432.1,2.91365]
[1718400098982,4.34617514,3433.3,3432.1,2.91365]
[1718400099181,2.91275,3433.2,3431.6,2.91406]
[1718400099533,1.43344514,3433.3,3430.3,2.3522]
[1718400099534,1.43344514,3432.4,3430.3,2.3522]
[1718400099686,2.91393,3431.8,3431.1,2.91445]
[1718400099888,2.9144,3431.3,3430.3,2.3522]
[1718400100083,2.9144,3431.3,3430.3,2.91517]
[1718400100318,2.9144,3431.3,3430.2,0.1202373]
[1718400100319,2.91418,3431.5,3430.9,2.91466]
[1718400100522,2.2718,3432.5,3430.2,0.1202373]
[1718400100523,2.91412,3431.6,3430.8,2.91474]
[1718400100825,2.91412,3431.6,3430.6,2.91492]
[1718400100826,2.91447,3431.2,3430.2,3.0354873]
[1718400100987,1.43344514,3431.5,3430.7,2.91485]
[1718400101187,2.91444,3431.2,3430.8,2.91476]
[1718400101486,2.91444,3431.2,3430.5,2.91495]
[1718400102689,2.91444,3431.2,3430.4,2.91505]
[1718400102690,5.83038,3430.3,3430.2,0.1202373]
[1718400102890,4.34863514,3430.3,3430.2,0.1202373]
[1718400103126,1.43344514,3430.3,3430.2,0.1202373]
[1718400106049,17.26581514,3430.3,3430.2,0.1202373]
[1718400106247,17.19981514,3430.3,3430.2,0.1202373]
[1718400106541,2.91599,3429.4,3428.8,2.91646]
[1718400106729,2.91615,3429.2,3428.7,2.91651]
[1718400106927,1.43344514,3429.1,3428.8,2.91644]
[1718400107130,4.34966514,3429.1,3428.6,2.91657]
[1718400107316,2.91631,3429.0,3428.6,2.91657]
[1718400107515,2.91604,3429.4,3428.8,2.91645]
[1718400107720,1.72504914,3429.3,3428.8,2.91645]
[1718400108039,2.91613,3429.2,3428.8,2.91645]
[1718400108244,4.34957514,3429.2,3428.8,2.91645]
[1718400108804,2.91622,3429.1,3428.8,2.91645]
[1718400109011,2.91564,3429.8,3428.9,2.9163]
[1718400109211,4.93229114,3429.7,3428.9,2.9163]
[1718400109444,2.91587,3429.5,3429.2,2.91613]
[1718400109657,2.9158,3429.6,3428.3,2.91684]
[1718400109810,4.34924514,3429.6,3428.3,2.91684]
[1718400110012,10.19852951,3430.3,3429.3,2.91598]
[1718400110211,0.03652124,3429.5,3429.4,5.83192]
[1718400110407,2.91539,3430.1,3429.5,2.91583]
[1718400110408,2.91554,3429.9,3429.5,2.91583]